Workbook

Sheet Лист1
A1: Отчет о результатах мониторинга качества финансового менеджмента,
A2: осуществляемого главными администраторами средств районного бюджета
A3: Шарангского муниципального района за 2017 год
A4: № | B4: Наименование главного администратора средств районного бюджета | C4: КВСР | D4: 1.1. Своевре - менность представления предвари -тельного (планового) реестра расходных обязательств | F4: 1.2. Полнота информации о расходных обязательс-твах | H4: 1.3. Сроки представления обоснований бюджетных ассигнований на очередной финансовый год | J4: 1.4. Охват в обоснованиях бюджетных ассигнований на очередной финансовый год показателями непосредственных результатов (пояснительными записками) сумм ассигнований, доведенных Управлением финансов администрации Шарангского района в качестве предельных объемов ассигнований в ходе составления проекта районного бюджета | L4: 1.5 Доля бюджетных ассигнований, представленных в программном виде | N4: 1.6. Доля бюджетных ассигнований на предоставление муниципальных услуг в виде субсидий на выполнение муниципальных заданий | P4: 1.7.1. Качество планирования расходов: сумма положительных внесенных изменений в бюджетную роспись в связи с уточнением ассигнований по решению Земского собрания Шарангского района о районном бюджете | R4: 1.7.2. Качество планирования расходов: сумма отрицательных внесенных изменений в бюджетную роспись в связи с уточнением ассигнований по решению Земского собрания Шарангского района о районном бюджете | T4: 1.8. Качество планирования расходов: сумма внесенных положительных изменений в бюджетную роспись в связи с передвижками между кодами бюджетной классификации | V4: 1. Финансовое планирование | X4: Наименование главного администратора средств районного бюджета | Y4: КВСР | Z4: 2.1. Кассовое исполнение расходов | AB4: 2.2. Равномер- ность осуществляемых расходов в отчетном фин. году | AD4: 2.3. Кассовое исполнение муниципальных программ ГРБС | AF4: 2.4. Своевремен-ность принятия бюджетных обязательств | AH4: 2.7. Качество исполнения расходов: наличие просрочен - ной кредиторс-кой задолжен-ности | AI4: 2.8. Уровень подготовки платежных документов | AK4: 2.9. Уровень использования субсидий бюджетными и автономными учреждениями, предоставленных на выполнение муниципальных заданий | AM4: 2.10.Равномерность расходов, осуществляемых бюджетными и автономными уч-ми на выполнение муниципальных заданий | AO4: 2.Исполнение бюджета в части расходов | AQ4: Наименование главного администратора средств районного бюджета | AR4: КВСР | AS4: 3.1. Качество правовой базы главного администра-тора доходов районного бюджета по администри-рованию доходов | AT4: 3.2. Полнота зачисления платежей в районный бюджет по главному администра -тору доходов районного бюджета, объем невыясненных поступлений | AV4: 3.3. Отклонение кассового исполнения по доходам от прогноза по главному администратору доходов районного бюджета | AX4: 3.4. Эффективность управления дебиторской задолженностью по расчетам с дебиторами по доходам | AZ4: 3.Исполнение бюджета в части доходов | BB4: 4.1. Методи - ческие рекоменда- ции (указания) ГРБС по реализации муниципальной учетной политики | BC4: 4.2. Подготовка и внедрение управленческого учета | BD4: 4.3. Степень реализации ведомственного плана повышения эффективности бюджетных расходов | BE4: 4.4. Динамика объема материальных запасов | BG4: 4.5.Коэффициент сложности бюджетных ассигнований | BI4: 4. Учет и отчетность | BK4: Наименование главного администратора средств районного бюджета | BL4: 5.1. Осуществление мероприятий внутреннего контроля | BM4: 5.2. Доля недостач и хищений денежных средств и материальных ценностей | BO4: 5.Контроль и аудит | BP4: 6.1.Качество исполнения бюджетных обязательств | BR4: 6.Исполнение судебных актов | BT4: ВСЕГО
A5: п\п
D6: % | E6: баллы | F6: % | G6: баллы | H6: % | I6: баллы | J6: % | K6: баллы | L6: % | M6: баллы | N6: % | O6: баллы | P6: % | Q6: баллы | R6: % | S6: баллы | T6: % | U6: баллы | V6: % | W6: баллы | Z6: % | AA6: баллы | AB6: % | AC6: баллы | AD6: % | AE6: баллы | AF6: % | AG6: баллы | AH6: баллы | AI6: % | AJ6: баллы | AK6: % | AL6: баллы | AM6: % | AN6: баллы | AO6: % | AP6: баллы | AS6: баллы | AT6: % | AU6: баллы | AV6: % | AW6: баллы | AX6: % | AY6: баллы | AZ6: % | BA6: баллы | BB6: баллы | BC6: баллы | BD6: баллы | BE6: % | BF6: баллы | BG6: % | BH6: баллы | BI6: % | BJ6: баллы | BL6: баллы | BM6: % | BN6: баллы | BO6: баллы | BP6: % | BQ6: баллы | BR6: % | BS6: баллы | BT6: Количество баллов
B7: 1 группа | X7: 1 группа | AQ7: 1 группа | BK7: 1 группа
A8: 1 | B8: Районный отдел образования | C8: 074 | D8: 0 | E8: 5 | F8: 0 | G8: 5 | H8: 0 | I8: 5 | J8: 100 | K8: 5 | L8: 100 | M8: 3 | N8: 86.4 | O8: 3 | P8: 99.2 | Q8: 2 | R8: 100 | S8: 3 | T8: 98.7 | U8: 3 | V8: =SUM(D8+F8+H8+J8+L8+N8+P8+R8+T8) -> 584.3 | W8: =SUM(E8+G8+I8+K8+M8+O8+Q8+S8+U8) -> 34 | X8: Районный отдел образования | Y8: 074 | Z8: 99.4 | AA8: 2 | AB8: 44.8 | AC8: 1 | AD8: 99.4 | AE8: 1 | AF8: 62.8 | AG8: 1 | AH8: 10 | AI8: 95.6 | AJ8: 1 | AK8: 95.9 | AL8: 1 | AM8: 54.7 | AN8: 1 | AO8: =SUM(Z8+AB8+AD8+AF8+AI8+AK8+AM8) -> 552.6 | AP8: =SUM(AA8+AC8+AE8+AG8+AH8+AJ8+AL8+AN8) -> 18 | AQ8: Районный отдел образования | AR8: 074 | AS8: 8 | AT8: 0 | AU8: 5 | AV8: 0 | AW8: 0 | AX8: 0 | AY8: 10 | AZ8: =SUM(AT8+AV8+AX8) -> 0 | BA8: =SUM(AS8+AU8+AW8+AY8) -> 23 | BB8: 10 | BC8: 10 | BD8: 0 | BE8: 144.6 | BF8: 0 | BG8: 766.4 | BH8: 2 | BI8: =SUM(BE8+BG8) -> 911 | BJ8: =SUM(BB8+BC8+BD8+BF8+BH8) -> 22 | BK8: Районный отдел образования | BL8: 5 | BM8: 0 | BN8: 5 | BO8: =SUM(BL8:BN8) -> 10 | BP8: 100 | BQ8: 10 | BR8: =SUM(BP8) -> 100 | BS8: =SUM(BQ8) -> 10 | BT8: =SUM(W8+AP8+BA8+BJ8+BO8+BS8) -> 117
A9: 2 | B9: Отдел культуры | C9: 057 | D9: 0 | E9: 5 | F9: 0 | G9: 5 | H9: 0 | I9: 5 | J9: 100 | K9: 5 | L9: 96 | M9: 2 | N9: 76.7 | O9: 2 | P9: 99 | Q9: 1 | R9: 99.9 | S9: 2 | T9: 98.5 | U9: 2 | V9: =SUM(D9+F9+H9+J9+L9+N9+P9+R9+T9) -> 570.1 | W9: =SUM(E9+G9+I9+K9+M9+O9+Q9+S9+U9) -> 29 | X9: Отдел культуры | Y9: 057 | Z9: 100 | AA9: 3 | AB9: 29.4 | AC9: 2 | AD9: 100 | AE9: 3 | AF9: 99.2 | AG9: 3 | AH9: 10 | AI9: 99.6 | AJ9: 3 | AK9: 98.5 | AL9: 2 | AM9: 44.1 | AN9: 3 | AO9: =SUM(Z9+AB9+AD9+AF9+AI9+AK9+AM9) -> 570.8 | AP9: =SUM(AA9+AC9+AE9+AG9+AH9+AJ9+AL9+AN9) -> 29 | AQ9: Отдел культуры | AR9: 057 | AS9: 8 | AT9: 0 | AU9: 5 | AV9: 0 | AW9: 0 | AX9: 0 | AY9: 10 | AZ9: =SUM(AT9+AV9+AX9) -> 0 | BA9: =SUM(AS9+AU9+AW9+AY9) -> 23 | BB9: 10 | BC9: 10 | BD9: 0 | BE9: 0 | BF9: 10 | BG9: 926.2 | BH9: 3 | BI9: =SUM(BE9+BG9) -> 926.2 | BJ9: =SUM(BB9+BC9+BD9+BF9+BH9) -> 33 | BK9: Отдел культуры | BL9: 5 | BM9: 0 | BN9: 5 | BO9: =SUM(BL9:BN9) -> 10 | BP9: 100 | BQ9: 10 | BR9: =SUM(BP9) -> 100 | BS9: =SUM(BQ9) -> 10 | BT9: =SUM(W9+AP9+BA9+BJ9+BO9+BS9) -> 134
A10: 3 | B10: Администрация | C10: 487 | D10: 0 | E10: 5 | F10: 0 | G10: 5 | H10: 0 | I10: 5 | J10: 100 | K10: 5 | L10: 54.6 | M10: 1 | N10: 46.1 | O10: 1 | P10: 93.7 | Q10: 3 | R10: 97 | S10: 1 | T10: 95.7 | U10: 1 | V10: 487.1 | W10: 27 | X10: Администрация | Y10: 487 | Z10: 98.7 | AA10: 1 | AB10: 24.9 | AC10: 3 | AD10: 99.8 | AE10: 2 | AF10: 86.7 | AG10: 2 | AH10: 10 | AI10: 96.6 | AJ10: 2 | AK10: 98.8 | AL10: 3 | AM10: 53.5 | AN10: 2 | AO10: 559 | AP10: 25 | AQ10: Администрация | AR10: 487 | AS10: 8 | AT10: 0 | AU10: 5 | AV10: -44.52 | AW10: 0 | AX10: 0 | AY10: 10 | AZ10: -44.52 | BA10: 23 | BB10: 10 | BC10: 10 | BD10: 0 | BE10: 107.2 | BF10: 0 | BG10: 55 | BH10: 1 | BI10: =SUM(BE10+BG10) -> 162.2 | BJ10: =SUM(BB10+BC10+BD10+BF10+BH10) -> 21 | BK10: Администрация | BL10: 5 | BM10: 0 | BN10: 5 | BO10: 10 | BP10: 100 | BQ10: 10 | BR10: 100 | BS10: 10 | BT10: =SUM(W10+AP10+BA10+BJ10+BO10+BS10) -> 116
B11: 2 группа | X11: 2 группа | AQ11: 2 группа | BK11: 2 группа
A12: 1 | B12: Управление сельского хозяйства | C12: 082 | D12: 0 | E12: 5 | F12: 0 | G12: 5 | H12: 0 | I12: 5 | J12: 100 | K12: 5 | L12: 100 | M12: 3 | P12: 100 | Q12: 3 | R12: 99.3 | S12: 3 | T12: 99.9 | U12: 3 | V12: =SUM(D12+F12+H12+J12+L12+N12+P12+R12+T12) -> 499.2 | W12: 32 | X12: Управление сельского хозяйства | Y12: 082 | Z12: 100 | AA12: 3 | AB12: 61.9 | AC12: 1 | AD12: 100 | AE12: 2 | AF12: 89.5 | AG12: 2 | AH12: 10 | AI12: 98.2 | AJ12: 1 | AO12: 449.6 | AP12: 19 | AQ12: Управление сельского хозяйства | AR12: 082 | AS12: 8 | AT12: 0 | AU12: 5 | AV12: 0 | AW12: 0 | AX12: 0 | AY12: 0 | AZ12: 0 | BA12: 13 | BB12: 10 | BC12: 10 | BD12: 0 | BE12: 57.1 | BF12: 10 | BG12: 86.1 | BH12: 2 | BI12: =SUM(BE12+BG12) -> 143.2 | BJ12: =SUM(BB12+BC12+BD12+BF12+BH12) -> 32 | BK12: Управление сельского хозяйства | BL12: 5 | BM12: 0 | BN12: 5 | BO12: 10 | BP12: 100 | BQ12: 10 | BR12: 100 | BS12: 10 | BT12: =SUM(W12+AP12+BA12+BJ12+BO12+BS12) -> 116
A13: 2 | B13: Финансовое управление | C13: 001 | D13: 0 | E13: 5 | F13: 0 | G13: 5 | H13: 0 | I13: 5 | J13: 100 | K13: 5 | L13: 100 | M13: 3 | P13: 78.5 | Q13: 2 | R13: 82.1 | S13: 2 | T13: 99.9 | U13: 3 | V13: =SUM(D13+F13+H13+J13+L13+N13+P13+R13+T13) -> 460.5 | W13: 30 | X13: Финансовое управление | Y13: 001 | Z13: 98.9 | AA13: 2 | AB13: -29.6 | AC13: 2 | AD13: 98.9 | AE13: 1 | AF13: 99.6 | AG13: 3 | AH13: 10 | AI13: 99.5 | AJ13: 2 | AO13: 367.3 | AP13: 20 | AQ13: Финансовое управление | AR13: 001 | AS13: 8 | AT13: 0 | AU13: 5 | AV13: 0 | AW13: 0 | AX13: 0 | AY13: 10 | AZ13: 0 | BA13: =SUM(AS13+AU13+AW13+AY13) -> 23 | BB13: 10 | BC13: 10 | BD13: 0 | BE13: 92.9 | BF13: 10 | BG13: 45.7 | BH13: 1 | BI13: =SUM(BE13+BG13) -> 138.6 | BJ13: =SUM(BB13+BC13+BD13+BF13+BH13) -> 31 | BK13: Финансовое управление | BL13: 5 | BM13: 0 | BN13: 5 | BO13: 10 | BP13: 100 | BQ13: 10 | BR13: 100 | BS13: 10 | BT13: =SUM(W13+AP13+BA13+BJ13+BO13+BS13) -> 124

Sheet Лист2

Sheet Лист3
